[Event "January 9 Late 2024"]
[Site "https://www.chess.com"]
[Date "2024.01.09"]
[Round "2"]
[White "Onufrienko, Vladislav"]
[Black "Paragua, Megan Althea"]
[Result "1-0"]
[Board "149"]
[TimeControl "180+1"]
[WhiteFideId "13804332"]
[BlackFideId "30973007"]
[WhiteElo "2617"]
[BlackElo "2385"]
[WhiteTeam "KGZ"]
[BlackTeam "USA"]
[WhiteClock "0:00:24"]
[BlackClock "0:00:00"]

1. e4 {[%clk 0:03:00]}  c5 {[%clk 0:02:57]} 2. Nc3 {[%clk 0:03:01]}  d6 {[%clk 0:02:57]} 3. d4 {[%clk 0:03:01]}  cxd4 {[%clk 0:02:56]} 4. Qxd4 {[%clk 0:03:02]}  Nc6 {[%clk 0:02:56]} 5. Qd2 {[%clk 0:03:02]}  g6 {[%clk 0:02:53]} 6. b3 {[%clk 0:03:03]}  Bh6 {[%clk 0:02:49]} 7. f4 {[%clk 0:03:03]}  f5 {[%clk 0:02:49]} 8. Bb2 {[%clk 0:03:03]}  Nf6 {[%clk 0:02:49]} 9. Bd3 {[%clk 0:03:03]}  Rf8 {[%clk 0:02:48]} 10. Nge2 {[%clk 0:03:03]}  Qa5 {[%clk 0:02:46]} 11. g3 {[%clk 0:03:02]}  Be6 {[%clk 0:02:39]} 12. a3 {[%clk 0:03:02]}  fxe4 {[%clk 0:01:53]} 13. Nxe4 {[%clk 0:03:02]}  Qxd2+ {[%clk 0:01:45]} 14. Nxd2 {[%clk 0:03:03]}  Rc8 {[%clk 0:01:41]} 15. O-O-O {[%clk 0:02:56]}  Ng4 {[%clk 0:01:36]} 16. Ne4 {[%clk 0:02:41]}  Bd5 {[%clk 0:01:33]} 17. Rdf1 {[%clk 0:02:34]}  Nce5 {[%clk 0:01:18]} 18. Bb5+ {[%clk 0:02:19]}  Kd8 {[%clk 0:01:12]} 19. N2c3 {[%clk 0:02:19]}  Bxe4 {[%clk 0:01:01]} 20. Nxe4 {[%clk 0:02:18]}  a6 {[%clk 0:01:01]} 21. Be2 {[%clk 0:02:17]}  Ne3 {[%clk 0:00:58]} 22. Rf2 {[%clk 0:01:36]}  Nd7 {[%clk 0:00:41]} 23. Bd3 {[%clk 0:01:26]}  d5 {[%clk 0:00:39]} 24. Nc3 {[%clk 0:01:16]}  Nc5 {[%clk 0:00:34]} 25. Rd2 {[%clk 0:01:16]}  Ke8 {[%clk 0:00:19]} 26. Kb1 {[%clk 0:01:12]}  d4 {[%clk 0:00:17]} 27. Ne4 {[%clk 0:01:10]}  Nxd3 {[%clk 0:00:12]} 28. cxd3 {[%clk 0:01:07]}  Nf5 {[%clk 0:00:10]} 29. Re1 {[%clk 0:00:59]}  Kf7 {[%clk 0:00:08]} 30. g4 {[%clk 0:00:57]}  Nd6 {[%clk 0:00:06]} 31. Bxd4 {[%clk 0:00:43]}  Bxf4 {[%clk 0:00:05]} 32. Rf2 {[%clk 0:00:42]}  Kg8 {[%clk 0:00:05]} 33. Nc5 {[%clk 0:00:33]}  Nb5 {[%clk 0:00:03]} 34. Ne6 {[%clk 0:00:28]}  Nxd4 {[%clk 0:00:03]} 35. Nxd4 {[%clk 0:00:26]}  e5 {[%clk 0:00:02]} 36. Ne6 {[%clk 0:00:21]}  Rf6 {[%clk 0:00:03]} 37. Nxf4 {[%clk 0:00:21]}  exf4 {[%clk 0:00:03]} 38. Kb2 {[%clk 0:00:20]}  g5 {[%clk 0:00:03]} 39. Re5 {[%clk 0:00:20]}  h6 {[%clk 0:00:04]} 40. h4 {[%clk 0:00:20]}  Rd6 {[%clk 0:00:04]} 41. hxg5 {[%clk 0:00:20]}  hxg5 {[%clk 0:00:03]} 42. Rxg5+ {[%clk 0:00:20]}  Kf8 {[%clk 0:00:04]} 43. Rxf4+ {[%clk 0:00:20]}  Ke7 {[%clk 0:00:04]} 44. Rc4 {[%clk 0:00:20]}  Rf8 {[%clk 0:00:03]} 45. Re5+ {[%clk 0:00:20]}  Kd7 {[%clk 0:00:03]} 46. Kc3 {[%clk 0:00:20]}  b5 {[%clk 0:00:03]} 47. Rce4 {[%clk 0:00:20]}  a5 {[%clk 0:00:01]} 48. Rxb5 {[%clk 0:00:19]}  Rc8+ {[%clk 0:00:02]} 49. Rc4 {[%clk 0:00:19]}  Rdc6 {[%clk 0:00:02]} 50. Rxa5 {[%clk 0:00:19]}  Rxc4+ {[%clk 0:00:02]} 51. dxc4 {[%clk 0:00:20]}  Rg8 {[%clk 0:00:02]} 52. Rd5+ {[%clk 0:00:20]}  Kc6 {[%clk 0:00:02]} 53. Rd4 {[%clk 0:00:21]}  Rg5 {[%clk 0:00:02]} 54. b4 {[%clk 0:00:22]}  Rg8 {[%clk 0:00:03]} 55. b5+ {[%clk 0:00:22]}  Kc5 {[%clk 0:00:03]} 56. Rd5+ {[%clk 0:00:22]}  Kb6 {[%clk 0:00:04]} 57. g5 {[%clk 0:00:23]}  Rf8 {[%clk 0:00:04]} 58. Kb4 {[%clk 0:00:23]}  Rf4 {[%clk 0:00:04]} 59. a4 {[%clk 0:00:23]}  Rg4 {[%clk 0:00:03]} 60. a5+ {[%clk 0:00:24]}  Ka7 {[%clk 0:00:04]} 61. Rd7+ {[%clk 0:00:23]}  Ka8 {[%clk 0:00:04]} 62. Rg7 {[%clk 0:00:24]}  Kb8 {[%clk 0:00:03]} 63. b6 {[%clk 0:00:24]}  Ka8 {[%clk 0:00:04]} 64. a6 {[%clk 0:00:24]}  Rxg5 {[%clk 0:00:00]} 65. Rxg5 {[%clk 0:00:24]} 1-0

[Event "January 9 Late 2024"]
[Site "https://www.chess.com"]
[Date "2024.01.09"]
[Round "2"]
[White "Haszon, David"]
[Black "Hamitevici, Vladimir"]
[Result "1-0"]
[Board "150"]
[TimeControl "180+1"]
[WhiteFideId "733610"]
[BlackFideId "13902393"]
[WhiteElo "2381"]
[BlackElo "2611"]
[WhiteTeam "HUN"]
[BlackTeam "MDA"]
[WhiteClock "0:00:08"]
[BlackClock "0:00:03"]

1. d4 {[%clk 0:02:53]}  g6 {[%clk 0:02:58]} 2. e4 {[%clk 0:02:51]}  d6 {[%clk 0:02:59]} 3. Nc3 {[%clk 0:02:51]}  c6 {[%clk 0:02:59]} 4. h4 {[%clk 0:02:50]}  Nf6 {[%clk 0:02:58]} 5. Bf4 {[%clk 0:02:46]}  Bg7 {[%clk 0:02:55]} 6. Qd2 {[%clk 0:02:45]}  b5 {[%clk 0:02:53]} 7. e5 {[%clk 0:02:37]}  b4 {[%clk 0:02:46]} 8. exf6 {[%clk 0:02:35]}  bxc3 {[%clk 0:02:46]} 9. Qxc3 {[%clk 0:02:22]}  Bxf6 {[%clk 0:02:45]} 10. Nf3 {[%clk 0:02:20]}  c5 {[%clk 0:02:19]} 11. Bb5+ {[%clk 0:01:59]}  Bd7 {[%clk 0:02:19]} 12. Bxd7+ {[%clk 0:01:57]}  Nxd7 {[%clk 0:02:16]} 13. Bg5 {[%clk 0:01:51]}  cxd4 {[%clk 0:02:13]} 14. Nxd4 {[%clk 0:01:48]}  Rc8 {[%clk 0:02:14]} 15. Qd2 {[%clk 0:01:40]}  Qb6 {[%clk 0:02:10]} 16. c3 {[%clk 0:01:37]}  h5 {[%clk 0:01:53]} 17. O-O-O {[%clk 0:01:35]}  Qa5 {[%clk 0:01:45]} 18. Kb1 {[%clk 0:01:32]}  O-O {[%clk 0:01:22]} 19. g4 {[%clk 0:01:31]}  hxg4 {[%clk 0:01:20]} 20. Rdg1 {[%clk 0:01:20]}  Bxd4 {[%clk 0:01:07]} 21. Qxd4 {[%clk 0:01:14]}  Qf5+ {[%clk 0:01:08]} 22. Ka1 {[%clk 0:01:11]}  Ne5 {[%clk 0:01:01]} 23. Bxe7 {[%clk 0:01:09]}  Rfe8 {[%clk 0:00:57]} 24. Bxd6 {[%clk 0:01:06]}  Nf3 {[%clk 0:00:52]} 25. Qxg4 {[%clk 0:00:55]}  Nxg1 {[%clk 0:00:51]} 26. Qxf5 {[%clk 0:00:53]}  gxf5 {[%clk 0:00:52]} 27. Rxg1+ {[%clk 0:00:53]}  Kh7 {[%clk 0:00:53]} 28. f4 {[%clk 0:00:50]}  Rg8 {[%clk 0:00:48]} 29. Re1 {[%clk 0:00:47]}  Rce8 {[%clk 0:00:40]} 30. Rc1 {[%clk 0:00:45]}  Re6 {[%clk 0:00:33]} 31. Be5 {[%clk 0:00:41]}  f6 {[%clk 0:00:33]} 32. Bd4 {[%clk 0:00:41]}  a6 {[%clk 0:00:31]} 33. c4 {[%clk 0:00:38]}  Rg4 {[%clk 0:00:24]} 34. c5 {[%clk 0:00:22]}  Rxf4 {[%clk 0:00:24]} 35. Bc3 {[%clk 0:00:20]}  Rxh4 {[%clk 0:00:19]} 36. b4 {[%clk 0:00:20]}  Rc4 {[%clk 0:00:16]} 37. Kb2 {[%clk 0:00:20]}  f4 {[%clk 0:00:15]} 38. Kb3 {[%clk 0:00:20]}  Rce4 {[%clk 0:00:14]} 39. Rf1 {[%clk 0:00:17]}  Kg6 {[%clk 0:00:14]} 40. a4 {[%clk 0:00:17]}  Kf5 {[%clk 0:00:13]} 41. b5 {[%clk 0:00:17]}  axb5 {[%clk 0:00:14]} 42. axb5 {[%clk 0:00:18]}  R6e5 {[%clk 0:00:14]} 43. Bb4 {[%clk 0:00:18]}  Re3+ {[%clk 0:00:14]} 44. Ka4 {[%clk 0:00:18]}  R5e4 {[%clk 0:00:13]} 45. b6 {[%clk 0:00:18]}  Re7 {[%clk 0:00:06]} 46. c6 {[%clk 0:00:17]}  R3e4 {[%clk 0:00:04]} 47. c7 {[%clk 0:00:15]}  Rxc7 {[%clk 0:00:02]} 48. bxc7 {[%clk 0:00:15]}  Rc4 {[%clk 0:00:03]} 49. Kb5 {[%clk 0:00:12]}  Rxc7 {[%clk 0:00:03]} 50. Bd6 {[%clk 0:00:12]}  Rc2 {[%clk 0:00:01]} 51. Bxf4 {[%clk 0:00:12]}  Ke6 {[%clk 0:00:02]} 52. Be3 {[%clk 0:00:12]}  Re2 {[%clk 0:00:03]} 53. Bd4 {[%clk 0:00:11]}  f5 {[%clk 0:00:03]} 54. Kc4 {[%clk 0:00:12]}  Re4 {[%clk 0:00:02]} 55. Kd3 {[%clk 0:00:12]}  Rg4 {[%clk 0:00:02]} 56. Be3 {[%clk 0:00:11]}  Re4 {[%clk 0:00:03]} 57. Bf4 {[%clk 0:00:10]}  Kd5 {[%clk 0:00:03]} 58. Be3 {[%clk 0:00:09]}  Ke5 {[%clk 0:00:04]} 59. Ra1 {[%clk 0:00:10]}  Rb4 {[%clk 0:00:02]} 60. Ra5+ {[%clk 0:00:10]}  Ke6 {[%clk 0:00:03]} 61. Bd4 {[%clk 0:00:10]}  Rb3+ {[%clk 0:00:03]} 62. Kc4 {[%clk 0:00:10]}  Rf3 {[%clk 0:00:03]} 63. Ra6+ {[%clk 0:00:10]}  Kf7 {[%clk 0:00:03]} 64. Kd5 {[%clk 0:00:11]}  Ke7 {[%clk 0:00:03]} 65. Ra7+ {[%clk 0:00:11]}  Kd8 {[%clk 0:00:03]} 66. Be5 {[%clk 0:00:11]}  Ke8 {[%clk 0:00:03]} 67. Ke6 {[%clk 0:00:11]}  Rd3 {[%clk 0:00:03]} 68. Re7+ {[%clk 0:00:11]}  Kd8 {[%clk 0:00:03]} 69. Rb7 {[%clk 0:00:10]}  Rc3 {[%clk 0:00:04]} 70. Bf6+ {[%clk 0:00:09]}  Kc8 {[%clk 0:00:04]} 71. Rf7 {[%clk 0:00:09]}  f4 {[%clk 0:00:03]} 72. Bxc3 {[%clk 0:00:08]} 1-0

[Event "January 9 Late 2024"]
[Site "https://www.chess.com"]
[Date "2024.01.09"]
[Round "2"]
[White "Kraiouchkine, Nikita"]
[Black "Gerbelli Neto, Eduardo"]
[Result "1-0"]
[Board "151"]
[TimeControl "180+1"]
[WhiteFideId "2607140"]
[BlackFideId "2103281"]
[WhiteElo "2610"]
[BlackElo "2371"]
[WhiteTeam "CAN"]
[BlackTeam "BRA"]
[WhiteClock "0:01:43"]
[BlackClock "0:00:33"]

1. e4 {[%clk 0:03:00]}  e5 {[%clk 0:02:59]} 2. Nf3 {[%clk 0:02:58]}  Nc6 {[%clk 0:02:59]} 3. Nc3 {[%clk 0:02:58]}  Nf6 {[%clk 0:02:58]} 4. d4 {[%clk 0:02:57]}  exd4 {[%clk 0:02:58]} 5. Nd5 {[%clk 0:02:57]}  Nb4 {[%clk 0:02:57]} 6. Bc4 {[%clk 0:02:57]}  Nbxd5 {[%clk 0:02:51]} 7. exd5 {[%clk 0:02:57]}  Bb4+ {[%clk 0:02:40]} 8. Bd2 {[%clk 0:02:57]}  Qe7+ {[%clk 0:02:41]} 9. Qe2 {[%clk 0:02:56]}  Bxd2+ {[%clk 0:02:34]} 10. Kxd2 {[%clk 0:02:56]}  Qxe2+ {[%clk 0:02:34]} 11. Kxe2 {[%clk 0:02:56]}  d6 {[%clk 0:02:29]} 12. Nxd4 {[%clk 0:02:55]}  O-O {[%clk 0:02:28]} 13. f3 {[%clk 0:02:54]}  Bd7 {[%clk 0:02:25]} 14. Rhe1 {[%clk 0:02:52]}  c6 {[%clk 0:02:25]} 15. dxc6 {[%clk 0:02:50]}  bxc6 {[%clk 0:02:26]} 16. Kf2 {[%clk 0:02:47]}  d5 {[%clk 0:02:24]} 17. Ba6 {[%clk 0:02:44]}  Rab8 {[%clk 0:02:23]} 18. Nb3 {[%clk 0:02:44]}  Bf5 {[%clk 0:02:13]} 19. c3 {[%clk 0:02:28]}  Rfe8 {[%clk 0:02:04]} 20. Rxe8+ {[%clk 0:02:25]}  Nxe8 {[%clk 0:01:59]} 21. Re1 {[%clk 0:02:23]}  Kf8 {[%clk 0:01:59]} 22. Re2 {[%clk 0:02:10]}  Nc7 {[%clk 0:01:53]} 23. Nc5 {[%clk 0:02:06]}  Rb6 {[%clk 0:01:39]} 24. Bd3 {[%clk 0:02:04]}  Bxd3 {[%clk 0:01:33]} 25. Nxd3 {[%clk 0:02:04]}  Ne6 {[%clk 0:01:34]} 26. Ne5 {[%clk 0:01:58]}  Ra6 {[%clk 0:01:04]} 27. b3 {[%clk 0:01:54]}  f6 {[%clk 0:00:50]} 28. Nd7+ {[%clk 0:01:45]}  Kf7 {[%clk 0:00:33]} 29. Rxe6 {[%clk 0:01:43]} 1-0

[Event "January 9 Late 2024"]
[Site "https://www.chess.com"]
[Date "2024.01.09"]
[Round "2"]
[White "Kashefi, Amir Hosein"]
[Black "Atanejhad, Sahebali"]
[Result "0-1"]
[Board "154"]
[TimeControl "180+1"]
[WhiteFideId "12557935"]
[BlackFideId "12506664"]
[WhiteElo "2578"]
[BlackElo "2364"]
[WhiteTeam "IRI"]
[BlackTeam "IRI"]
[WhiteClock "0:00:00"]
[BlackClock "0:00:35"]

1. g3 {[%clk 0:03:00]}  Nf6 {[%clk 0:02:58]} 2. Bg2 {[%clk 0:03:00]}  g6 {[%clk 0:02:59]} 3. b3 {[%clk 0:03:00]}  Bg7 {[%clk 0:02:59]} 4. Bb2 {[%clk 0:03:01]}  O-O {[%clk 0:02:59]} 5. c4 {[%clk 0:03:01]}  d6 {[%clk 0:02:58]} 6. d3 {[%clk 0:03:02]}  c6 {[%clk 0:02:58]} 7. Nd2 {[%clk 0:03:02]}  e5 {[%clk 0:02:58]} 8. Ngf3 {[%clk 0:03:02]}  h6 {[%clk 0:02:57]} 9. O-O {[%clk 0:03:02]}  Bg4 {[%clk 0:02:57]} 10. Rc1 {[%clk 0:03:01]}  Nbd7 {[%clk 0:02:57]} 11. Rc2 {[%clk 0:02:57]}  Re8 {[%clk 0:02:51]} 12. Qa1 {[%clk 0:02:55]}  a5 {[%clk 0:02:47]} 13. h3 {[%clk 0:02:55]}  Be6 {[%clk 0:02:44]} 14. a3 {[%clk 0:02:54]}  Rb8 {[%clk 0:02:35]} 15. Rd1 {[%clk 0:02:48]}  Nh7 {[%clk 0:02:32]} 16. Bc3 {[%clk 0:02:45]}  c5 {[%clk 0:02:20]} 17. a4 {[%clk 0:02:32]}  b6 {[%clk 0:02:18]} 18. Nf1 {[%clk 0:02:30]}  Rc8 {[%clk 0:02:14]} 19. Rcd2 {[%clk 0:02:28]}  Nb8 {[%clk 0:02:14]} 20. Ne3 {[%clk 0:02:27]}  Nc6 {[%clk 0:02:14]} 21. Kh2 {[%clk 0:02:15]}  Nd4 {[%clk 0:02:14]} 22. Qb2 {[%clk 0:02:15]}  Qd7 {[%clk 0:02:11]} 23. Ng1 {[%clk 0:02:02]}  Kh8 {[%clk 0:02:00]} 24. Nd5 {[%clk 0:01:54]}  Rb8 {[%clk 0:01:59]} 25. e3 {[%clk 0:01:51]}  Nc6 {[%clk 0:01:57]} 26. Ne2 {[%clk 0:01:48]}  Nb4 {[%clk 0:01:57]} 27. Qc1 {[%clk 0:01:40]}  f5 {[%clk 0:01:54]} 28. d4 {[%clk 0:01:36]}  Bxd5 {[%clk 0:01:48]} 29. cxd5 {[%clk 0:01:32]}  e4 {[%clk 0:01:45]} 30. dxc5 {[%clk 0:01:29]}  bxc5 {[%clk 0:01:43]} 31. Nf4 {[%clk 0:01:28]}  Qf7 {[%clk 0:01:36]} 32. Ne6 {[%clk 0:01:26]}  Bxc3 {[%clk 0:01:35]} 33. Qxc3+ {[%clk 0:01:25]}  Qf6 {[%clk 0:01:34]} 34. Qc4 {[%clk 0:01:24]}  Qe5 {[%clk 0:01:31]} 35. Bf1 {[%clk 0:01:22]}  Nf6 {[%clk 0:01:30]} 36. Nf4 {[%clk 0:01:19]}  Kg7 {[%clk 0:01:28]} 37. Qc1 {[%clk 0:01:17]}  g5 {[%clk 0:01:24]} 38. Ne6+ {[%clk 0:01:16]}  Rxe6 {[%clk 0:01:23]} 39. dxe6 {[%clk 0:01:16]}  Rd8 {[%clk 0:01:19]} 40. Bc4 {[%clk 0:01:12]}  h5 {[%clk 0:01:15]} 41. Qa1 {[%clk 0:01:03]}  Qxa1 {[%clk 0:01:13]} 42. Rxa1 {[%clk 0:01:02]}  d5 {[%clk 0:01:12]} 43. Bb5 {[%clk 0:01:02]}  Kf8 {[%clk 0:01:11]} 44. Rc1 {[%clk 0:01:00]}  Rc8 {[%clk 0:01:07]} 45. h4 {[%clk 0:00:44]}  g4 {[%clk 0:01:04]} 46. Bd7 {[%clk 0:00:36]}  Rc7 {[%clk 0:00:56]} 47. Kg2 {[%clk 0:00:34]}  Ke7 {[%clk 0:00:55]} 48. Kf1 {[%clk 0:00:33]}  Nxd7 {[%clk 0:00:55]} 49. exd7 {[%clk 0:00:33]}  Kxd7 {[%clk 0:00:55]} 50. Ke2 {[%clk 0:00:33]}  Kd6 {[%clk 0:00:55]} 51. Rcd1 {[%clk 0:00:31]}  Ke5 {[%clk 0:00:55]} 52. Rc2 {[%clk 0:00:31]}  Rc6 {[%clk 0:00:53]} 53. Rb2 {[%clk 0:00:30]}  d4 {[%clk 0:00:52]} 54. Rbd2 {[%clk 0:00:24]}  d3+ {[%clk 0:00:51]} 55. Kf1 {[%clk 0:00:24]}  Nd5 {[%clk 0:00:51]} 56. Rc1 {[%clk 0:00:23]}  Kd6 {[%clk 0:00:51]} 57. Rb2 {[%clk 0:00:22]}  Rb6 {[%clk 0:00:51]} 58. Ke1 {[%clk 0:00:21]}  Rb4 {[%clk 0:00:45]} 59. Kd2 {[%clk 0:00:20]}  Nb6 {[%clk 0:00:45]} 60. Rcb1 {[%clk 0:00:14]}  c4 {[%clk 0:00:38]} 61. Rc1 {[%clk 0:00:06]}  cxb3 {[%clk 0:00:36]} 62. Kc3 {[%clk 0:00:00]}  Nxa4+ {[%clk 0:00:35]} 0-1

[Event "January 9 Late 2024"]
[Site "https://www.chess.com"]
[Date "2024.01.09"]
[Round "2"]
[White "Luukkonen, Tommi"]
[Black "Erzhanov, Arman"]
[Result "0-1"]
[Board "157"]
[TimeControl "180+1"]
[WhiteFideId "501808"]
[BlackFideId "4138821"]
[WhiteElo "2359"]
[BlackElo "2551"]
[WhiteTeam "FIN"]
[BlackTeam "KAZ"]
[WhiteClock "0:00:10"]
[BlackClock "0:01:06"]

1. d4 {[%clk 0:03:00]}  d6 {[%clk 0:02:59]} 2. e4 {[%clk 0:03:00]}  Nf6 {[%clk 0:02:59]} 3. Nc3 {[%clk 0:03:00]}  c6 {[%clk 0:02:59]} 4. f4 {[%clk 0:03:00]}  d5 {[%clk 0:02:59]} 5. e5 {[%clk 0:02:59]}  Ng8 {[%clk 0:03:00]} 6. Nf3 {[%clk 0:02:58]}  g6 {[%clk 0:03:00]} 7. Bd3 {[%clk 0:02:51]}  h5 {[%clk 0:03:00]} 8. Ne2 {[%clk 0:02:50]}  Nh6 {[%clk 0:02:59]} 9. O-O {[%clk 0:02:45]}  Bg4 {[%clk 0:02:53]} 10. h3 {[%clk 0:02:41]}  Bf5 {[%clk 0:02:52]} 11. Ng5 {[%clk 0:02:39]}  e6 {[%clk 0:02:51]} 12. Ng3 {[%clk 0:02:34]}  Bxd3 {[%clk 0:02:51]} 13. Qxd3 {[%clk 0:02:35]}  h4 {[%clk 0:02:51]} 14. Nh1 {[%clk 0:02:33]}  Nf5 {[%clk 0:02:51]} 15. Nf2 {[%clk 0:02:32]}  Be7 {[%clk 0:02:51]} 16. Nf3 {[%clk 0:02:30]}  Nd7 {[%clk 0:02:50]} 17. c3 {[%clk 0:02:29]}  c5 {[%clk 0:02:50]} 18. Kh2 {[%clk 0:02:23]}  Qb6 {[%clk 0:02:49]} 19. a3 {[%clk 0:02:12]}  cxd4 {[%clk 0:02:40]} 20. cxd4 {[%clk 0:02:12]}  Rc8 {[%clk 0:02:40]} 21. Bd2 {[%clk 0:02:10]}  Kf8 {[%clk 0:02:36]} 22. Bc3 {[%clk 0:02:09]}  Kg7 {[%clk 0:02:36]} 23. Ng4 {[%clk 0:02:09]}  Rc4 {[%clk 0:02:32]} 24. Rae1 {[%clk 0:02:04]}  Rhc8 {[%clk 0:02:31]} 25. Ne3 {[%clk 0:01:45]}  Ng3 {[%clk 0:02:18]} 26. f5 {[%clk 0:01:18]}  Nxf5 {[%clk 0:02:08]} 27. Nxf5+ {[%clk 0:01:16]}  gxf5 {[%clk 0:02:05]} 28. Rg1 {[%clk 0:01:10]}  Rg8 {[%clk 0:01:53]} 29. Qe3 {[%clk 0:01:08]}  Nf8 {[%clk 0:01:28]} 30. g3 {[%clk 0:01:05]}  hxg3+ {[%clk 0:01:27]} 31. Rxg3+ {[%clk 0:01:06]}  Ng6 {[%clk 0:01:27]} 32. h4 {[%clk 0:01:06]}  Rh8 {[%clk 0:01:24]} 33. Kg2 {[%clk 0:01:06]}  Kf8 {[%clk 0:01:24]} 34. Rxg6 {[%clk 0:00:50]}  fxg6 {[%clk 0:01:23]} 35. Rh1 {[%clk 0:00:49]}  Qb3 {[%clk 0:01:21]} 36. Ng5 {[%clk 0:00:42]}  Qc2+ {[%clk 0:01:20]} 37. Kg3 {[%clk 0:00:40]}  Rc6 {[%clk 0:01:16]} 38. Rf1 {[%clk 0:00:33]}  Ke8 {[%clk 0:01:14]} 39. Rf2 {[%clk 0:00:29]}  Qd1 {[%clk 0:01:09]} 40. Nf3 {[%clk 0:00:18]}  Bxh4+ {[%clk 0:01:06]} 41. Nxh4 {[%clk 0:00:10]}  Qg4+ {[%clk 0:01:06]} 0-1

[Event "January 9 Late 2024"]
[Site "https://www.chess.com"]
[Date "2024.01.09"]
[Round "2"]
[White "Ward, Ieuan C"]
[Black "Carnicelli, Valerio"]
[Result "0-1"]
[Board "159"]
[TimeControl "180+1"]
[WhiteFideId "406627"]
[BlackFideId "856185"]
[WhiteElo "2357"]
[BlackElo "2550"]
[WhiteTeam "ENG"]
[BlackTeam "ITA"]
[WhiteClock "0:00:42"]
[BlackClock "0:01:04"]

1. e4 {[%clk 0:03:00]}  c5 {[%clk 0:02:59]} 2. Nf3 {[%clk 0:03:00]}  d6 {[%clk 0:02:59]} 3. d4 {[%clk 0:03:00]}  cxd4 {[%clk 0:02:59]} 4. Qxd4 {[%clk 0:03:00]}  Nc6 {[%clk 0:02:58]} 5. Bb5 {[%clk 0:03:01]}  Bd7 {[%clk 0:02:57]} 6. Bxc6 {[%clk 0:03:01]}  Bxc6 {[%clk 0:02:57]} 7. c4 {[%clk 0:03:02]}  Nf6 {[%clk 0:02:54]} 8. Nc3 {[%clk 0:03:02]}  g6 {[%clk 0:02:53]} 9. O-O {[%clk 0:03:02]}  Bg7 {[%clk 0:02:54]} 10. Re1 {[%clk 0:03:03]}  O-O {[%clk 0:02:53]} 11. Qd3 {[%clk 0:03:03]}  Nd7 {[%clk 0:02:52]} 12. Be3 {[%clk 0:02:58]}  Nc5 {[%clk 0:02:46]} 13. Qc2 {[%clk 0:02:50]}  a5 {[%clk 0:02:45]} 14. Bd4 {[%clk 0:02:48]}  Bxd4 {[%clk 0:02:26]} 15. Nxd4 {[%clk 0:02:47]}  e5 {[%clk 0:02:24]} 16. Ndb5 {[%clk 0:02:37]}  Bxb5 {[%clk 0:02:05]} 17. Nxb5 {[%clk 0:02:36]}  Qb6 {[%clk 0:02:05]} 18. Rad1 {[%clk 0:02:35]}  Rad8 {[%clk 0:02:03]} 19. Re2 {[%clk 0:02:24]}  f5 {[%clk 0:01:59]} 20. exf5 {[%clk 0:02:19]}  Rxf5 {[%clk 0:01:59]} 21. Red2 {[%clk 0:02:18]}  Rf6 {[%clk 0:01:54]} 22. Nc3 {[%clk 0:02:06]}  Qc6 {[%clk 0:01:43]} 23. Nd5 {[%clk 0:02:04]}  Rf7 {[%clk 0:01:43]} 24. b3 {[%clk 0:01:56]}  Rdf8 {[%clk 0:01:43]} 25. a3 {[%clk 0:01:55]}  Ne6 {[%clk 0:01:40]} 26. Qc3 {[%clk 0:01:45]}  Nd4 {[%clk 0:01:39]} 27. Rxd4 {[%clk 0:01:42]}  exd4 {[%clk 0:01:40]} 28. Qxd4 {[%clk 0:01:37]}  Qc5 {[%clk 0:01:38]} 29. Qxc5 {[%clk 0:01:31]}  dxc5 {[%clk 0:01:39]} 30. f3 {[%clk 0:01:30]}  Kg7 {[%clk 0:01:31]} 31. Kf2 {[%clk 0:01:29]}  Rd7 {[%clk 0:01:15]} 32. Re1 {[%clk 0:01:25]}  b5 {[%clk 0:01:11]} 33. Re6 {[%clk 0:01:05]}  a4 {[%clk 0:01:08]} 34. Nb6 {[%clk 0:00:51]}  Rd2+ {[%clk 0:01:07]} 35. Ke3 {[%clk 0:00:51]}  Rxg2 {[%clk 0:01:05]} 36. cxb5 {[%clk 0:00:42]}  axb3 {[%clk 0:01:04]} 0-1